bitfinex-derivatives/quotes_SOLF0:USTF0_20250719
["timestamp","ask_amount","ask_price","bid_price","bid_amount"]
[1752929841819,3.27,177.27,177.25,5.6386]
[1752929842015,3.27,177.27,177.25,8.8786]
[1752929842315,3.27,177.27,177.26,3.24]
[1752929846226,8.9082,177.27,177.24,8.879]
[1752929846420,3.07,177.26,177.24,8.879]
[1752929846821,3.07,177.26,177.25,3.24]
[1752929847326,3.07,177.26,177.25,8.8788]
[1752929848222,4.96205672,177.26,177.18,1.89205672]
[1752929848423,3.07,177.25,177.19,3.24]
[1752929849121,3.07,177.24,177.23,3.24]
[1752929849620,3.07,177.24,177.23,8.8795]
[1752929852828,3.07,177.25,177.24,5.6391]
[1752929853021,3.07,177.25,177.24,8.8791]
[1752929855727,3.07,177.25,177.24,3.24]
[1752929858625,8.7088,177.25,177.24,3.24]
[1752929858927,3.07,177.24,177.22,3.24]
[1752929859124,1.89205672,177.24,177.21,8.8799]
[1752929859429,3.07,177.23,177.21,8.8799]
[1752929861030,3.07,177.23,177.22,8.8798]
[1752929862028,3.07,177.24,177.23,3.24]
[1752929862530,3.07,177.24,177.23,8.8795]
[1752929864934,3.07,177.24,177.23,3.24]
[1752929865837,3.07,177.24,177.23,8.8795]
[1752929866735,5.6393,177.24,177.21,8.88]
[1752929866937,3.07,177.23,177.21,8.88]
[1752929867331,3.07,177.22,177.2,5.6403]
[1752929867528,3.07,177.22,177.2,8.8803]
[1752929867732,3.07,177.22,177.2,3.24]
[1752929867933,3.07,177.22,177.21,3.24]
[1752929868130,3.07,177.22,177.21,8.8801]
[1752929871241,3.07,177.22,177.21,3.24]
[1752929871651,3.07,177.22,177.21,8.8801]
[1752929877356,3.07,177.22,177.2,5.6403]
[1752929877559,3.07,177.22,177.2,8.6503]
[1752929877857,3.07,177.22,177.21,3.01]
[1752929878657,8.7098,177.22,177.21,3.01]
[1752929879360,3.0,177.18,177.15,103.2]
[1752929879561,1.89205672,177.2,177.15,103.2]
[1752929879761,5.6409,177.19,177.17,3.01]
[1752929879962,3.0,177.18,177.17,3.01]
[1752929880560,3.0,177.18,177.17,8.6514]
[1752929881059,4.21118249,177.18,177.17,8.6514]
[1752929881860,3.0,177.18,177.17,8.6514]
[1752929882258,3.0,177.18,177.17,3.01]
[1752929882457,3.0,177.18,177.16,5.6416]
[1752929882458,3.0,177.18,177.16,8.6516]
[1752929882758,3.0,177.18,177.16,3.01]
[1752929882958,3.0,177.17,177.16,3.01]
[1752929884164,8.6414,177.17,177.16,3.01]
[1752929884362,3.0,177.17,177.14,3.01]
[1752929884563,3.0,177.16,177.14,3.01]
[1752929884763,3.0,177.16,177.15,5.6418]
[1752929884959,3.0,177.16,177.15,8.6518]
[1752929887067,3.0,177.16,177.15,5.6418]
[1752929887266,3.0,177.16,177.15,8.6518]
[1752929892369,5.6412,177.18,177.11,1.89258874]
[1752929892370,3.0,177.18,177.17,3.01]
[1752929892766,3.0,177.18,177.12,3.01]
[1752929893770,3.0,177.16,177.15,3.01]
[1752929895474,3.0,177.16,177.12,3.01]
[1752929895773,3.0,177.14,177.12,3.01]
[1752929896674,3.0,177.14,177.13,3.01]
[1752929897173,3.0,177.15,177.13,8.6524]
[1752929897374,3.0,177.15,177.14,3.01]
[1752929897778,3.0,177.17,177.16,3.01]
[1752929898975,3.0,177.17,177.16,8.6517]
[1752929899476,3.0,177.17,177.16,5.6417]
[1752929899676,3.0,177.17,177.11,1.89258874]
[1752929899677,3.0,177.16,177.1,1.89258874]
[1752929899874,3.0,177.16,177.11,3.01]
[1752929900575,3.0,177.16,177.14,3.26]
[1752929900877,3.0,177.16,177.15,3.26]
[1752929901877,3.0,177.16,177.15,8.902]
[1752929904779,4.54131605,177.17,177.15,5.642]
[1752929904974,3.33,177.17,177.16,8.9017]
[1752929905278,4.54131605,177.18,177.17,3.26]
[1752929905479,3.33,177.18,177.17,3.26]
[1752929905780,4.54131605,177.18,177.17,3.26]
[1752929908280,4.54131605,177.18,177.16,8.9017]
[1752929908480,3.33,177.17,177.16,8.9017]
[1752929910879,1.21131605,177.19,177.18,3.26]
[1752929911473,4.54131605,177.19,177.18,3.26]
[1752929913981,10.18201605,177.19,177.18,3.26]
[1752929914184,3.33,177.18,177.17,3.26]
[1752929914586,3.33,177.17,177.13,3.26]
[1752929914786,1.21131605,177.16,177.13,3.26]
[1752929915085,3.33,177.15,177.13,3.26]
[1752929915683,3.33,177.15,177.14,8.902]
[1752929920385,4.54131605,177.16,177.15,8.902]
[1752929920687,3.33,177.16,177.15,8.902]
[1752929933199,3.33,177.16,177.13,1.21131605]
[1752929933200,5.6402,177.21,177.18,3.28]
[1752929933399,1.21131605,177.19,177.18,3.28]
[1752929933898,4.24131605,177.19,177.18,3.28]
[1752929934295,4.24131605,177.19,177.18,8.921]
[1752929938095,3.03,177.19,177.18,5.641]
[1752929938397,109.50861923,177.26,177.21,3.28]
[1752929938699,109.50861923,177.26,177.17,1.21131605]
[1752929938700,3.03,177.22,177.18,3.28]
[1752929938902,3.03,177.22,177.2,5.6402]
[1752929939100,4.24131605,177.21,177.2,3.28]
[1752929940295,4.24131605,177.21,177.2,5.6404]
[1752929941803,4.24131605,177.21,177.2,8.9204]
[1752929942902,4.24131605,177.21,177.2,3.28]
[1752929943603,3.03,177.21,177.2,3.28]
[1752929943798,4.24131605,177.21,177.2,8.9204]
[1752929944805,4.24131605,177.21,177.2,3.28]
[1752929945003,4.24131605,177.21,177.15,1.21131605]
[1752929945004,1.21131605,177.21,177.15,1.21131605]
[1752929945203,4.24131605,177.19,177.18,3.28]
[1752929946906,3.03,177.19,177.18,3.28]
[1752929947102,4.24131605,177.19,177.18,3.28]
[1752929948303,4.24131605,177.19,177.18,5.641]
[1752929948498,4.24131605,177.19,177.18,8.921]
[1752929949007,4.24131605,177.2,177.19,8.9206]
[1752929949507,4.24131605,177.2,177.19,3.28]
[1752929952511,3.03,177.2,177.19,3.28]
[1752929953010,3.03,177.2,177.19,8.9207]
[1752929954210,1.21131605,177.21,177.2,5.6404]
[1752929954413,4.24131605,177.21,177.2,8.9204]
[1752929962623,4.24131605,177.21,177.2,3.28]
[1752929963817,3.03,177.21,177.2,3.28]
[1752929964025,4.24131605,177.21,177.2,3.28]
[1752929972424,4.24131605,177.21,177.2,8.9204]
[1752929972620,3.31,177.25,177.17,1.21131605]
[1752929972822,3.31,177.23,177.21,5.6399]
[1752929973020,3.31,177.23,177.22,3.23]
[1752929976431,8.9495,177.23,177.22,3.23]
[1752929978027,3.31,177.23,177.22,3.23]
[1752929982035,3.31,177.23,177.22,8.19555809]
[1752929982937,4.52131605,177.23,177.22,8.19555809]
[1752929983136,4.52131605,177.23,177.22,13.83535809]
[1752929984333,1.21131605,177.23,177.22,13.83535809]
[1752929984536,3.31,177.27,177.24,3.23]
[1752929984736,3.31,177.28,177.26,3.23]
[1752929984934,3.31,177.28,177.27,13.83355809]
[1752929986031,3.31,177.29,177.28,5.6377]
[1752929986233,3.31,177.29,177.28,8.8677]
[1752929986539,3.31,177.38,177.34,3.23]
[1752929986841,3.31,177.38,177.28,11.80837905]
[1752929986842,3.31,177.38,177.36,3.23]
[1752929987040,3.31,177.37,177.36,8.8653]
[1752929987941,3.31,177.36,177.32,1.21131605]
[1752929988130,3.31,177.34,177.33,8.17165234]
[1752929988739,3.31,177.34,177.33,13.80775234]
[1752929989138,23.28861923,177.45,177.35,5.6356]
[1752929989337,3.31,177.43,177.39,3.23]
[1752929989537,3.31,177.48,177.42,1.21131605]
[1752929989840,3.31,177.48,177.44,3.23]
[1752929989841,3.31,177.45,177.44,3.23]
[1752929991343,1.88662502,177.47,177.33,3.29]
[1752929991533,1.88662502,177.47,177.3,381.04662502]
[1752929991534,3.2,177.46,177.41,5.6337]
[1752929991737,103.0,177.49,177.42,3.29]
[1752929991940,3.2,177.48,177.42,3.29]
[1752929992241,1.88662502,177.48,177.32,3.29]
[1752929992444,3.2,177.42,177.36,3.29]
[1752929992737,3.2,177.41,177.38,3.29]
[1752929992942,1.88662502,177.42,177.38,3.29]
[1752929992943,3.2,177.4,177.38,3.29]
[1752929993145,3.2,177.4,177.39,3.29]
[1752929993542,3.2,177.46,177.4,3.29]
[1752929993942,5.6328,177.44,177.4,3.29]
[1752929994244,3.2,177.42,177.4,3.29]
[1752929994439,5.6332,177.43,177.3,1.88662502]
[1752929994645,5.08662502,177.41,177.33,1.88662502]
[1752929994841,3.2,177.41,177.35,1.88662502]
[1752929995043,3.2,177.41,177.37,3.29]
[1752929995945,3.2,177.41,177.4,3.29]
[1752929996439,103.54,177.47,177.4,3.29]
[1752929996440,8.8328,177.44,177.4,3.29]
[1752929996642,3.2,177.43,177.4,3.29]
[1752929997047,3.2,177.42,177.4,3.29]
[1752929997942,3.2,177.42,177.4,5.634]
[1752929998251,3.2,177.42,177.41,3.29]
[1752930000455,5.08662502,177.42,177.39,3.29]
[1752930000645,3.2,177.41,177.39,3.29]
[1752930001152,3.2,177.4,177.39,3.29]
[1752930003353,3.2,177.42,177.36,1.88662502]
[1752930003547,3.2,177.44,177.39,3.29]
[1752930003946,3.2,177.43,177.41,5.6335]
[1752930004150,3.2,177.43,177.42,3.29]
[1752930004957,3.2,177.43,177.41,3.29]
[1752930005257,5.08662502,177.44,177.37,3.29]
[1752930005555,5.08662502,177.44,177.42,3.29]
[1752930005756,3.2,177.43,177.37,3.29]
[1752930006161,3.2,177.43,177.39,5.6341]
[1752930006352,3.2,177.43,177.4,3.29]
[1752930006752,3.2,177.43,177.41,3.29]
[1752930006950,8.8332,177.43,177.41,3.29]
[1752930007155,3.2,177.41,177.35,3.29]
[1752930007753,3.2,177.41,177.39,3.29]
[1752930008154,3.2,177.41,177.4,3.29]
[1752930012152,3.2,177.41,177.38,3.29]
[1752930013363,3.2,177.39,177.38,3.29]
[1752930020475,3.15,177.4,177.39,3.04]
[1752930021672,3.15,177.4,177.29,3.04]
[1752930021874,3.15,177.4,177.22,9.55185451]
[1752930021875,3.15,177.38,177.32,3.04]
[1752930022078,3.15,177.4,177.37,3.04]
[1752930022473,3.15,177.4,177.38,3.04]
[1752930022766,3.15,177.4,177.39,3.04]
[1752930022967,3.15,177.4,177.37,3.04]
[1752930023171,3.15,177.4,177.38,3.04]
[1752930023776,3.15,177.4,177.33,1.88662502]
[1752930023980,3.15,177.4,177.39,3.04]
[1752930025270,3.15,177.4,177.37,8.6749]
[1752930025472,3.15,177.4,177.38,3.04]
[1752930025675,3.15,177.39,177.38,3.04]
[1752930028472,3.15,177.39,177.38,7.47297849]
[1752930030474,3.15,177.39,177.38,4.43297849]
[1752930031078,3.15,177.39,177.38,7.47297849]
[1752930031475,3.15,177.39,177.38,4.43297849]
[1752930034282,3.15,177.39,177.38,7.47297849]
[1752930035682,3.15,177.4,177.39,3.04]
[1752930035880,3.15,177.4,177.39,7.47297849]
[1752930037679,3.15,177.4,177.39,4.45460757]
[1752930038876,3.15,177.4,177.39,7.49460757]
[1752930039381,8.7841,177.4,177.39,4.45460757]
[1752930043482,8.7841,177.4,177.36,8.6753]
[1752930043680,8.7841,177.4,177.37,7.48922189]
[1752930043681,3.15,177.39,177.37,7.48922189]
[1752930043876,3.15,177.39,177.38,4.44922189]
[1752930044079,3.15,177.39,177.38,7.48922189]
[1752930044478,3.15,177.39,177.38,4.44922189]
[1752930045582,3.15,177.39,177.38,7.48922189]
[1752930050581,8.7844,177.39,177.38,7.48922189]
[1752930053191,9.99283516,177.39,177.38,7.48922189]
[1752930055788,9.99283516,177.39,177.38,4.44922189]
[1752930056296,9.99283516,177.39,177.38,7.63922189]
[1752930059991,9.99283516,177.39,177.38,4.44922189]
[1752930060191,3.05,177.36,177.31,1.20843516]
[1752930060494,1.20843516,177.32,177.29,5.6373]
[1752930060696,1.20843516,177.31,177.29,5.6373]
[1752930060891,1.20843516,177.31,177.3,3.19]
[1752930062897,1.88978325,177.32,177.3,3.19]
[1752930063394,4.93978325,177.32,177.3,3.19]
[1752930064096,3.05,177.31,177.3,3.19]
[1752930065099,1.88978325,177.32,177.3,3.19]
[1752930065789,3.05,177.33,177.31,3.19]
[1752930065995,3.05,177.36,177.31,3.19]
[1752930066297,8.6854,177.36,177.34,5.6359]
[1752930066497,4.93978325,177.38,177.35,3.19]
[1752930066895,8.6852,177.37,177.35,3.19]
[1752930067296,1.88978325,177.36,177.3,3.19]
[1752930067505,3.05,177.33,177.3,3.19]
[1752930067801,3.05,177.33,177.31,5.6367]
[1752930068101,3.05,177.33,177.32,3.19]
[1752930068295,10.57588325,177.34,177.32,3.19]
[1752930069004,7.52588325,177.34,177.32,3.19]
[1752930069300,3.05,177.33,177.32,3.19]
[1752930073106,8.6863,177.33,177.32,3.19]
[1752930073504,8.6863,177.33,177.3,3.19]
[1752930073709,3.05,177.32,177.31,3.19]
[1752930076105,3.05,177.32,177.31,8.8269]
[1752930076605,3.05,177.32,177.31,3.19]
[1752930077608,3.05,177.32,177.31,8.8269]
[1752930078308,3.05,177.32,177.31,3.19]
[1752930079802,3.05,177.32,177.31,8.8269]
[1752930086208,3.2,177.33,177.32,8.6766]
[1752930087408,3.2,177.33,177.32,3.04]
[1752930087814,8.8363,177.33,177.32,3.04]
[1752930089113,5.6363,177.33,177.32,3.04]
[1752930089314,3.2,177.37,177.32,3.04]
[1752930089516,1.88978325,177.38,177.32,3.04]
[1752930089517,3.2,177.36,177.32,3.04]
[1752930089718,3.2,177.35,177.34,3.04]
[1752930090818,8.8356,177.36,177.34,5.636]
[1752930091018,8.8356,177.36,177.35,3.04]
[1752930092822,3.2,177.36,177.35,8.6757]
[1752930094528,8.8354,177.36,177.35,3.04]
[1752930095827,3.2,177.36,177.35,3.04]
[1752930096025,3.2,177.36,177.35,8.6757]
[1752930097026,3.2,177.36,177.35,3.04]
[1752930098431,8.8354,177.36,177.35,3.04]
[1752930099329,3.2,177.36,177.27,3.04]
[1752930099527,1.88978325,177.33,177.27,3.04]
[1752930099831,3.2,177.31,177.25,133.53555179]
[1752930100030,3.2,177.3,177.25,128.89822962]
[1752930100332,3.2,177.29,177.27,5.6381]
[1752930100624,3.2,177.29,177.28,3.04]
[1752930101332,10.72678325,177.31,177.28,8.6779]
[1752930101636,1.88978325,177.31,177.29,3.04]
[1752930101828,5.08978325,177.31,177.29,3.04]
[1752930102132,5.08978325,177.31,177.29,8.6773]
[1752930102332,5.08978325,177.31,177.3,3.04]
[1752930103735,3.2,177.31,177.3,3.04]
[1752930105234,8.8369,177.31,177.3,3.04]
[1752930105736,3.2,177.31,177.3,3.04]
[1752930106931,3.2,177.31,177.3,8.6773]
[1752930107636,5.08978325,177.32,177.31,3.04]
[1752930108933,3.2,177.34,177.31,3.04]
[1752930109133,3.2,177.35,177.31,3.04]
[1752930109534,3.2,177.36,177.31,3.04]
[1752930110835,8.8354,177.36,177.33,5.6361]
[1752930111138,3.22,177.35,177.34,3.03]
[1752930113428,3.22,177.35,177.33,3.03]
[1752930113839,8.8557,177.35,177.33,3.03]
[1752930114138,3.22,177.34,177.33,3.03]
[1752930115337,4.42891985,177.34,177.33,3.03]
[1752930117039,4.42891985,177.34,177.33,5.6363]
[1752930117240,3.22,177.34,177.33,8.6663]
[1752930121041,3.22,177.34,177.33,3.03]
[1752930121247,10.06491985,177.34,177.33,3.03]
[1752930121440,4.42891985,177.34,177.33,3.03]
[1752930121742,4.42891985,177.34,177.33,8.6663]
[1752930122438,4.42891985,177.34,177.33,3.03]
[1752930125048,4.42891985,177.34,177.33,8.6663]
[1752930125343,3.22,177.33,177.32,3.03]
[1752930125540,3.22,177.33,177.32,8.6665]
[1752930125842,3.22,177.33,177.32,3.03]
[1752930126740,3.22,177.33,177.31,8.6667]
[1752930127141,3.22,177.33,177.32,3.03]
[1752930128146,3.22,177.33,177.32,8.6666]
[1752930132046,3.22,177.33,177.32,3.03]
[1752930132346,4.42891985,177.33,177.32,3.03]
[1752930133042,10.06521985,177.33,177.32,3.03]
[1752930133245,3.22,177.33,177.32,8.6666]
[1752930135042,3.22,177.33,177.32,3.03]
[1752930135743,3.22,177.33,177.32,8.6666]
[1752930137844,3.22,177.35,177.32,3.03]
[1752930138050,1.20891985,177.38,177.33,1.20891985]
[1752930138248,3.22,177.37,177.35,3.03]
[1752930138445,3.22,177.37,177.35,8.6656]
[1752930138648,3.22,177.37,177.36,3.03]
[1752930138940,3.22,177.38,177.36,3.03]
[1752930139145,3.22,177.37,177.36,8.6651]
[1752930140147,4.42891985,177.37,177.36,8.6651]
[1752930140649,4.42891985,177.37,177.36,3.03]
[1752930143753,10.06391985,177.37,177.36,3.03]
[1752930143945,3.31,177.36,177.34,3.23]
[1752930144150,1.20891985,177.35,177.32,3.23]
[1752930144348,3.31,177.32,177.3,1.20891985]
[1752930144746,3.31,177.32,177.31,3.23]
[1752930144951,1.20891985,177.32,177.28,4.63732217]
[1752930145153,4.51891985,177.3,177.29,3.23]
[1752930145451,4.51891985,177.3,177.29,8.8676]
[1752930145852,1.20891985,177.3,177.29,8.8676]
[1752930146351,6.34861923,177.41,177.31,3.23]
[1752930146352,3.31,177.39,177.31,3.23]
[1752930146548,1.20891985,177.34,177.31,3.23]
[1752930146754,1.20891985,177.33,177.31,8.8668]
[1752930146945,3.31,177.33,177.32,3.23]
[1752930147855,8.9463,177.33,177.32,3.23]
[1752930150456,3.31,177.33,177.32,3.23]
[1752930151450,3.31,177.33,177.32,8.8666]
[1752930152056,3.31,177.34,177.32,8.8666]
[1752930152354,3.31,177.34,177.33,3.23]
[1752930152557,8.946,177.34,177.33,3.23]
[1752930155257,3.31,177.34,177.33,3.23]
[1752930155958,8.946,177.34,177.33,3.23]
[1752930156556,3.31,177.33,177.32,5.6366]
[1752930156856,3.31,177.33,177.32,8.8666]
[1752930157654,300.90385779,177.4,177.34,5.6359]
[1752930157855,1.88923153,177.37,177.34,8.8659]
[1752930158258,3.31,177.38,177.35,3.23]
[1752930158455,193.48447009,177.4,177.35,3.23]
[1752930158655,3.31,177.37,177.35,3.23]
[1752930159164,3.31,177.39,177.35,3.23]
[1752930159864,3.31,177.39,177.37,3.23]
[1752930160056,3.31,177.39,177.33,3.23]
[1752930160452,8.9444,177.39,177.36,5.6351]
[1752930160758,3.31,177.38,177.37,3.23]
[1752930161864,8.9447,177.38,177.37,3.23]
[1752930163362,3.31,177.38,177.37,8.865]
[1752930163855,3.31,177.43,177.37,2.40296535]
[1752930164052,3.31,177.43,177.42,3.23]
[1752930164656,8.9433,177.43,177.42,3.23]
[1752930165258,3.31,177.43,177.42,3.23]
[1752930165566,3.31,177.45,177.42,3.23]
[1752930166266,3.31,177.45,177.44,3.23]
[1752930166657,3.31,177.51,177.44,3.23]
[1752930167357,3.31,177.51,177.48,3.23]
[1752930167761,3.31,177.49,177.43,2.40296535]
[1752930168363,3.31,177.49,177.46,5.6321]
[1752930168562,5.6308,177.51,177.46,5.6321]
[1752930168563,3.31,177.48,177.46,5.6321]
[1752930168856,3.31,177.5,177.46,5.6321]
[1752930169261,8.9411,177.5,177.47,3.23]
[1752930169463,3.31,177.49,177.47,3.23]
[1752930169759,3.31,177.48,177.47,3.23]
[1752930170865,8.9415,177.48,177.47,3.23]
[1752930171659,3.31,177.48,177.47,3.23]
[1752930172264,8.9415,177.48,177.47,3.23]
[1752930174260,5.58296535,177.54,177.47,5.63296535]
[1752930174463,3.18,177.53,177.48,3.09]
[1752930175061,3.18,177.5,177.47,8.03466535]
[1752930175262,3.18,177.5,177.49,3.09]
[1752930177659,3.18,177.57,177.49,3.09]
[1752930177966,3.18,177.55,177.49,3.09]
[1752930178466,3.18,177.54,177.51,3.09]
[1752930178659,3.18,177.54,177.48,3.09]
[1752930178857,8.8098,177.54,177.5,5.6307]
[1752930179163,3.18,177.55,177.48,3.09]
[1752930179967,3.18,177.54,177.51,3.09]
[1752930180362,3.18,177.54,177.52,3.09]
[1752930181066,3.18,177.53,177.45,3.09]
[1752930181264,2.40296535,177.53,177.45,3.09]
[1752930181463,3.18,177.52,177.45,3.09]
[1752930181660,3.18,177.51,177.45,3.09]
[1752930181863,3.18,177.54,177.47,3.09]
[1752930182064,3.18,177.54,177.49,8.7211]
[1752930182267,3.18,177.54,177.49,5.6311]
[1752930182466,3.18,177.54,177.51,3.09]
[1752930182667,5.6298,177.54,177.51,3.09]
[1752930182868,3.18,177.53,177.51,3.09]
[1752930183164,3.18,177.53,177.5,5.6307]
[1752930183371,3.18,177.52,177.51,3.09]
[1752930183567,3.18,177.53,177.51,3.09]
[1752930183965,3.18,177.53,177.5,8.7207]
[1752930184172,3.18,177.53,177.51,3.09]
[1752930184367,3.18,177.52,177.51,3.09]
[1752930185376,3.18,177.52,177.51,8.7211]
[1752930185572,3.18,177.52,177.51,3.09]
[1752930185879,3.18,177.53,177.51,3.09]
[1752930187477,3.18,177.53,177.45,3.09]
[1752930187672,3.18,177.53,177.47,3.09]
[1752930188074,3.18,177.52,177.47,3.09]
[1752930188880,3.18,177.52,177.5,5.6309]
[1752930189075,3.18,177.52,177.5,8.7209]
[1752930189876,3.18,177.52,177.5,3.09]
[1752930190988,8.8103,177.52,177.5,3.09]
[1752930191286,3.18,177.51,177.5,3.09]
[1752930192684,3.18,177.51,177.5,8.721]
[1752930194692,3.18,177.51,177.5,3.09]
[1752930195390,3.18,177.51,177.5,8.721]
[1752930199592,3.18,177.51,177.5,5.631]
[1752930199797,5.58296535,177.51,177.48,3.09]
[1752930199999,3.18,177.5,177.44,3.09]
[1752930200193,5.631,177.5,177.47,5.6317]
[1752930200398,3.01,177.49,177.48,3.21]
[1752930202098,8.6413,177.49,177.48,3.21]
[1752930204204,3.01,177.49,177.48,3.21]
[1752930207800,8.6413,177.49,177.48,3.21]
[1752930209003,3.01,177.49,177.48,3.21]
[1752930211900,8.6413,177.49,177.48,3.21]
[1752930212099,3.01,177.49,177.48,3.21]
[1752930213907,8.6412,177.49,177.48,3.21]
[1752930214409,3.01,177.49,177.48,3.21]
[1752930215804,8.6414,177.49,177.48,3.21]
[1752930217208,3.01,177.48,177.42,3.21]
[1752930217502,3.01,177.47,177.45,1.53609561]
[1752930217709,1.53609561,177.5,177.46,5.6321]
[1752930217906,3.01,177.49,177.47,3.21]
[1752930218104,3.01,177.49,177.48,3.21]
[1752930218307,8.6416,177.49,177.48,3.21]
[1752930219709,3.01,177.49,177.48,3.21]
[1752930221109,7.16689561,177.51,177.48,5.6317]
[1752930221407,3.01,177.49,177.47,1.53609561]
[1752930221801,3.01,177.49,177.48,8.8417]
[1752930222208,3.01,177.5,177.49,3.21]
[1752930225510,3.01,177.5,177.49,8.8414]
[1752930226015,3.01,177.5,177.49,3.21]
[1752930226215,3.01,177.53,177.49,3.21]
[1752930226517,3.01,177.52,177.5,3.21]
[1752930227816,3.01,177.52,177.51,5.6306]
[1752930228015,3.01,177.52,177.51,8.8406]
[1752930231616,1.53609561,177.54,177.51,8.8406]
[1752930231617,5.6296,177.55,177.51,3.21]
[1752930231919,3.24,177.54,177.51,3.21]
[1752930232221,3.24,177.53,177.52,5.6304]
[1752930232417,5.6294,177.56,177.52,5.6304]
[1752930232418,3.24,177.54,177.52,1.53609561]
[1752930232621,3.24,177.56,177.53,4.76609561]
[1752930232821,3.24,177.56,177.55,3.23]
[1752930234520,3.24,177.56,177.55,8.8595]
[1752930235116,4.77609561,177.56,177.55,3.23]
[1752930238123,3.24,177.56,177.55,3.23]
[1752930238730,3.24,177.56,177.55,8.8595]
[1752930241318,3.24,177.57,177.56,5.629]
[1752930241526,3.24,177.61,177.57,3.23]
[1752930241719,3.24,177.58,177.57,3.23]
[1752930241923,3.24,177.58,177.57,8.8586]
[1752930242430,4.77609561,177.58,177.57,8.8586]
[1752930242818,3.24,177.58,177.57,8.8586]
[1752930244226,3.24,177.61,177.58,3.23]
[1752930244428,152.87353196,177.67,177.6,1.53609561]
[1752930244429,3.24,177.65,177.6,1.53609561]
[1752930244629,3.24,177.65,177.64,3.23]
[1752930246220,3.24,177.65,177.64,8.8566]
[1752930246418,3.24,177.66,177.65,3.23]
[1752930246618,1.53609561,177.7,177.66,3.23]
[1752930246929,3.24,177.68,177.67,3.23]
[1752930247230,3.24,177.7,177.67,3.23]
[1752930247425,3.24,177.69,177.67,8.8557]
[1752930247625,3.24,177.69,177.68,3.23]
[1752930248724,8.865,177.69,177.68,3.23]
[1752930249327,3.24,177.68,177.62,2.39489951]
[1752930249526,3.24,177.67,177.62,2.39489951]
[1752930249726,3.24,177.67,177.64,5.6266]
[1752930249932,3.24,177.67,177.65,3.23]
[1752930250822,3.24,177.66,177.56,11.2581]
[1752930251028,3.24,177.66,177.61,2.39489951]
[1752930251329,3.24,177.66,177.64,3.23]
[1752930251526,2.39489951,177.7,177.64,3.23]
[1752930251733,3.24,177.71,177.64,3.23]
[1752930252528,3.24,177.71,177.66,3.23]
[1752930252934,2.39489951,177.75,177.7,3.23]
[1752930253232,3.24,177.74,177.7,3.23]
[1752930253432,3.24,177.72,177.7,3.23]